fUSD/lending_fUSD_20240614
["ID","MTS","AMOUNT","RATE_DAILY","PERIOD"]
[329436342,1718339534679,-500.0,0.00027123,3]
[329436343,1718339534699,-500.0,0.00027123,3]
[329436344,1718339534717,-208.09666928,0.00027123,3]
[329436345,1718339534730,-1004.96,0.00027123,3]
[329436346,1718339534744,-500.0,0.00027123,3]
[329436347,1718339534758,-500.0,0.00027123,3]
[329436348,1718339534773,-538.39,0.00027123,3]
[329436349,1718339534795,-1118.03,0.00027123,3]
[329436350,1718339534810,-714.57,0.00027123,3]
[329436351,1718339534824,-608.47,0.00027123,3]
[329436352,1718339534838,-613.06,0.00027123,3]
[329436353,1718339534867,-1072.6,0.00027123,3]
[329436354,1718339534880,-956.0,0.00027123,3]
[329436355,1718339534894,-2671.76,0.00027123,3]
[329436356,1718339534907,-1819.66,0.00027123,3]
[329436357,1718339534931,-933.79,0.00027123,3]
[329436358,1718339534965,-621.84,0.00027123,3]
[329436359,1718339534977,-500.0,0.00027123,3]
[329436360,1718339534992,-555.33,0.00027123,3]
[329436361,1718339535005,-675.64,0.00027123,3]
[329436362,1718339535018,-1522.73,0.00027123,3]
[329436363,1718339535031,-685.9,0.00027123,3]
[329436364,1718339535043,-1128.28,0.00027123,3]
[329436365,1718339535056,-568.14,0.00027123,3]
[329436366,1718339535075,-955.6,0.00027123,3]
[329436367,1718339535088,-550.81,0.00027123,3]
[329436368,1718339535116,-500.0,0.00027123,3]
[329436369,1718339535141,-500.0,0.00027123,3]
[329436370,1718339535161,-1291.78,0.00027123,3]
[329436371,1718339535172,-658.71,0.00027123,3]
[329436372,1718339535206,-856.95,0.00027123,3]
[329436373,1718339535220,-500.0,0.00027123,3]
[329436374,1718339535235,-500.0,0.00027123,3]
[329436375,1718339535247,-500.0,0.00027123,3]
[329436376,1718339535262,-1024.96,0.00027123,3]
[329436377,1718339535298,-500.0,0.00027123,3]
[329436378,1718339535319,-2152.37,0.00027123,3]
[329436379,1718339535335,-599.85,0.00027123,3]
[329436380,1718339535386,-500.0,0.00027123,3]
[329436381,1718339535399,-956.85,0.00027123,3]
[329436382,1718339535418,-1170.45,0.00027123,3]
[329436383,1718339535432,-1214.59,0.00027123,3]
[329436384,1718339535444,-224.53162531,0.00027123,3]
[329436385,1718339535457,-500.0,0.00027123,3]
[329436386,1718339535477,-500.0,0.00027123,3]
[329436387,1718339535488,-500.0,0.00027123,3]
[329436388,1718339535503,-500.0,0.00027123,3]
[329436389,1718339535518,-2473.73,0.00027123,3]
[329436390,1718339535539,-500.0,0.00027123,3]
[329436391,1718339535551,-805.87,0.00027123,3]
[329436392,1718339535570,-1116.43,0.00027123,3]
[329436393,1718339535600,-1036.04,0.00027123,3]
[329436394,1718339535620,-1345.04,0.00027123,3]
[329436395,1718339535633,-1427.39,0.00027123,3]
[329436396,1718339535648,-458.54379262,0.00027123,3]
[329436397,1718339535662,-500.0,0.00027123,3]
[329436398,1718339535687,-500.0,0.00027123,3]
[329436399,1718339535703,-500.0,0.00027123,3]
[329436400,1718339535720,-697.86,0.00027123,3]
[329436401,1718339535740,-500.0,0.00027123,3]
[329436402,1718339535752,-679.77,0.00027123,3]
[329436403,1718339535774,-500.0,0.00027123,3]
[329436404,1718339535786,-590.04,0.00027123,3]
[329436405,1718339535810,-500.0,0.00027123,3]
[329436406,1718339535832,-622.11,0.00027123,3]
[329436407,1718339535844,-1058.89,0.00027123,3]
[329436408,1718339535860,-500.0,0.00027123,3]
[329436409,1718339535886,-2428.66,0.00027123,3]
[329436410,1718339535901,-592.39,0.00027123,3]
[329436411,1718339535918,-2903.07,0.00027123,3]
[329436412,1718339535933,-1440.79,0.00027123,3]
[329436413,1718339535947,-592.07,0.00027123,3]
[329436414,1718339535970,-1382.49,0.00027123,3]
[329436415,1718339536021,-3488.55,0.00027123,3]
[329436416,1718339536052,-685.96,0.00027123,3]
[329436417,1718339536091,-1913.72,0.00027123,3]
[329436418,1718339536114,-7564.41,0.00027123,3]
[329436419,1718339536141,-1286.09,0.00027123,3]
[329436420,1718339536159,-586.2,0.00027123,3]
[329436421,1718339536173,-600.9508612,0.00027123,3]
[329436422,1718339536188,-812.79,0.00027123,3]
[329436423,1718339536207,-500.0,0.00027123,3]
[329436424,1718339536232,-263.66545318,0.00027123,3]
[329436425,1718339536246,-895.63,0.00027123,3]
[329436426,1718339536269,-1228.35,0.00027123,3]
[329436427,1718339536281,-3118.28,0.00027123,3]
[329436428,1718339536299,-233.38572294,0.00027123,3]
[329436429,1718339536313,-793.01,0.00027123,3]
[329436430,1718339536342,-500.0,0.00027123,3]
[329436431,1718339536366,-500.0,0.00027123,3]
[329436432,1718339536379,-500.0,0.00027123,3]
[329436433,1718339536390,-1794.39,0.00027123,3]
[329436434,1718339536424,-549.58,0.00027123,2]
[329436435,1718339536451,-150.0,0.0002715,2]
[329436436,1718339536468,-977.26,0.000272,2]
[329436437,1718339536485,-152.0,0.00027257,7]
[329436438,1718339536502,-611.0,0.000273,2]
[329436439,1718339536517,-611.0,0.000273,2]
[329436440,1718339536531,-1288.81460087,0.00027319,2]
[329436441,1718339536555,-3582.8914072,0.00027359,2]
[329436442,1718339536574,-14898.4973284,0.00027359,2]
[329436443,1718339536590,-805.3127715,0.00027359,2]
[329436444,1718339536604,-5356.6137605,0.00027359,2]
[329436445,1718339536638,-1817.3662601,0.00027359,2]
[329436446,1718339536651,-150.2224988,0.00027359,2]
[329436447,1718339536667,-4761.9497413,0.00027359,2]
[329436448,1718339536688,-344608.501799,0.00027378,2]
[329436449,1718339536703,-150.2224988,0.00027378,2]
[329436450,1718339536718,-3864.2431709,0.00027378,2]
[329436451,1718339536734,-804.3,0.00027394,3]
[329436452,1718339536758,-890739.44344844,0.00027395,13]
[329436453,1718339536771,-500.0,0.00027395,3]
[329436454,1718339536783,-523.82,0.00027395,3]
[329436455,1718339536794,-500.0,0.00027395,3]
[329436456,1718339536810,-500.0,0.00027395,3]
[329436457,1718339536824,-500.0,0.00027395,3]
[329436458,1718339536837,-289.22549358,0.00027395,3]
[329436459,1718339536848,-500.0,0.00027395,3]
[329436460,1718339536865,-500.0,0.00027395,3]
[329436461,1718339536876,-368.59001253,0.00027395,3]
[329436462,1718339536887,-500.0,0.00027395,3]
[329436463,1718339536902,-452.83941896,0.00027395,3]
[329436464,1718339536916,-500.0,0.00027395,3]
[329436465,1718339536939,-500.0,0.00027395,3]
[329436466,1718339536964,-500.0,0.00027395,3]
[329436467,1718339536988,-500.0,0.00027395,3]
[329436468,1718339537020,-614.92683837,0.00027395,3]
[329436469,1718339537031,-1564.27,0.00027395,3]
[329436470,1718339537044,-500.0,0.00027395,3]
[329436471,1718339537063,-500.0,0.00027395,3]
[329436472,1718339537075,-589.39,0.00027395,3]
[329436473,1718339537100,-571.04,0.00027395,3]
[329436474,1718339537116,-500.0,0.00027395,3]
[329436475,1718339537129,-739.0,0.00027395,3]
[329436476,1718339537141,-500.0,0.00027395,3]
[329436477,1718339537178,-500.0,0.00027395,3]
[329436478,1718339537203,-531.15,0.00027395,3]
[329436479,1718339537222,-542.84,0.00027395,3]
[329436480,1718339537257,-1349.75,0.00027395,3]
[329436481,1718339537290,-701.93,0.00027395,3]
[329436482,1718339537325,-999.06,0.00027395,3]
[329436483,1718339537352,-4942.89,0.00027395,3]
[329436484,1718339537396,-500.0,0.00027396,3]
[329436485,1718339537408,-500.0,0.00027396,3]
[329436486,1718339537421,-818.16,0.00027396,3]
[329436487,1718339537434,-3270.76,0.00027396,3]
[329436488,1718339537447,-661.36,0.00027396,3]
[329436489,1718339537460,-502.95,0.00027396,3]
[329436490,1718339537473,-580.28,0.00027396,3]
[329436491,1718339537492,-515.80643145,0.00027397,5]
[329436492,1718339537505,-216.0,0.00027397,2]
[329436493,1718339537518,-216.0,0.00027397,2]
[329436494,1718339537530,-216.0,0.00027397,2]
[329436495,1718339537542,-216.0,0.00027397,2]
[329436496,1718339537558,-216.0,0.00027397,2]
[329436497,1718339537574,-216.0,0.00027397,2]
[329436498,1718339537613,-216.0,0.00027397,2]
[329436499,1718339537625,-612.06,0.00027397,3]
[329436500,1718339537636,-500.0,0.00027397,3]
[329436501,1718339537658,-1500.0,0.00027397,2]
[329436502,1718339537671,-1500.0,0.00027397,2]
[329436503,1718339537706,-1550.69498961,0.00027397,3]
[329436504,1718339537721,-500.0,0.00027397,3]
[329436505,1718339537780,-500.0,0.00027397,3]
[329436506,1718339537836,-500.0,0.00027397,3]
[329436507,1718339537868,-500.0,0.00027397,3]
[329436508,1718339537894,-6561.12,0.00027397,3]
[329436509,1718339537908,-500.0,0.00027397,3]
[329436510,1718339537926,-531.91,0.00027397,3]
[329436511,1718339537984,-500.0,0.00027397,3]
[329436512,1718339538067,-500.0,0.00027397,3]
[329436513,1718339538133,-500.0,0.00027397,3]
[329436514,1718339538257,-500.0,0.00027397,3]
[329436515,1718339538292,-1004.96,0.00027397,3]
[329436516,1718339538314,-500.0,0.00027397,3]
[329436517,1718339538331,-500.0,0.00027397,3]
[329436518,1718339538343,-538.39,0.00027397,3]
[329436519,1718339538425,-1118.03,0.00027397,3]
[329436520,1718339538437,-714.57,0.00027397,3]
[329436521,1718339538449,-608.47,0.00027397,3]
[329436522,1718339538481,-613.06,0.00027397,3]
[329436523,1718339538511,-1072.6,0.00027397,3]
[329436524,1718339538563,-956.0,0.00027397,3]
[329436525,1718339538685,-2671.76,0.00027397,3]
[329436526,1718339538813,-1819.66,0.00027397,3]
[329436527,1718339538837,-933.79,0.00027397,3]
[329436528,1718339538882,-621.84,0.00027397,3]
[329436529,1718339538944,-359.50147602,0.00027397,3]
[329436530,1718339538958,-555.33,0.00027397,3]
[329436531,1718339538973,-675.64,0.00027397,3]
[329436532,1718339539059,-1522.73,0.00027397,3]
[329436533,1718339539070,-685.9,0.00027397,3]
[329436534,1718339539100,-568.14,0.00027397,3]
[329436535,1718339539133,-1128.28,0.00027397,3]
[329436536,1718339539211,-955.6,0.00027397,3]
[329436537,1718339539245,-550.81,0.00027397,3]
[329436538,1718339539268,-500.0,0.00027397,3]
[329436539,1718339539338,-500.0,0.00027397,3]
[329436540,1718339539365,-1291.78,0.00027397,3]
[329436541,1718339539411,-658.71,0.00027397,3]
[329436542,1718339539431,-856.95,0.00027397,3]
[329436543,1718339539459,-500.0,0.00027397,3]
[329436544,1718339539473,-500.0,0.00027397,3]
[329436545,1718339539498,-160.04355525,0.00027397,3]
[329436546,1718339539529,-1024.96,0.00027397,3]
[329436547,1718339539540,-500.0,0.00027397,3]
[329436548,1718339539553,-2152.37,0.00027397,3]
[329436549,1718339539577,-599.85,0.00027397,3]
[329436550,1718339539622,-500.0,0.00027397,3]
[329436551,1718339539649,-956.85,0.00027397,3]
[329436552,1718339539677,-1170.45,0.00027397,3]
[329436553,1718339539745,-1214.59,0.00027397,3]
[329436554,1718339539767,-500.0,0.00027397,3]
[329436555,1718339539793,-500.0,0.00027397,3]
[329436556,1718339539849,-500.0,0.00027397,3]
[329436557,1718339539872,-500.0,0.00027397,3]
[329436558,1718339539902,-2473.73,0.00027397,3]
[329436559,1718339539938,-500.0,0.00027397,3]
[329436560,1718339539961,-805.87,0.00027397,3]
[329436561,1718339539976,-1116.43,0.00027397,3]
[329436562,1718339539992,-1036.04,0.00027397,3]
[329436563,1718339540007,-1345.04,0.00027397,3]
[329436564,1718339540023,-1427.39,0.00027397,3]
[329436565,1718339540044,-500.0,0.00027397,3]
[329436566,1718339540077,-500.0,0.00027397,3]
[329436567,1718339540097,-500.0,0.00027397,3]
[329436568,1718339540114,-697.86,0.00027397,3]
[329436569,1718339540161,-500.0,0.00027397,3]
[329436570,1718339540187,-679.77,0.00027397,3]
[329436571,1718339540210,-500.0,0.00027397,3]
[329436572,1718339540236,-590.04,0.00027397,3]
[329436573,1718339540251,-500.0,0.00027397,3]
[329436574,1718339540272,-622.11,0.00027397,3]
[329436575,1718339540309,-1058.89,0.00027397,3]
[329436576,1718339540322,-319.31272827,0.00027397,3]
[329436577,1718339540354,-2428.66,0.00027397,3]
[329436578,1718339540378,-592.39,0.00027397,3]
[329436579,1718339540415,-2903.07,0.00027397,3]
[329436580,1718339540429,-1440.79,0.00027397,3]
[329436581,1718339540442,-592.07,0.00027397,3]
[329436582,1718339540456,-1382.49,0.00027397,3]
[329436583,1718339540478,-3488.55,0.00027397,3]
[329436584,1718339540496,-685.96,0.00027397,3]
[329436585,1718339540510,-1913.72,0.00027397,3]
[329436586,1718339540529,-7564.41,0.00027397,3]
[329436587,1718339540568,-1286.09,0.00027397,3]
[329436588,1718339540582,-151.0,0.00027397,5]
[329436589,1718339540600,-586.2,0.00027397,3]
[329436590,1718339540614,-812.79,0.00027397,3]
[329436591,1718339540628,-500.0,0.00027397,3]
[329436592,1718339540658,-895.63,0.00027397,3]
[329436593,1718339540687,-373.54805109,0.00027397,2]
[329436594,1718339540699,-450.32780255,0.00027397,2]
[329436595,1718339540715,-1228.35,0.00027397,3]
[329436596,1718339540738,-3118.28,0.00027397,3]
[329436597,1718339540776,-793.01,0.00027397,3]
[329436598,1718339540797,-500.0,0.00027397,3]
[329436599,1718339540817,-500.0,0.00027397,3]
[329436600,1718339540845,-500.0,0.00027397,3]
[329436601,1718339540856,-1794.39,0.00027397,3]
[329436602,1718339540881,-202.81101421,0.00027397,7]
[329436603,1718339540900,-610.725,0.00027397,30]
[329436604,1718339540912,-264.658905,0.00027397,2]
[329436605,1718339540923,-151.0,0.00027397,7]
[329436606,1718339540937,-151.0,0.00027397,7]
[329436607,1718339540957,-151.0,0.00027397,7]
[329436608,1718339540980,-252.102272,0.00027397,7]
[329436609,1718339541004,-153.72,0.00027397,2]
[329436610,1718339541052,-151.0,0.00027397,7]
[329436611,1718339541067,-151.0,0.00027397,7]
[329436612,1718339541084,-151.0,0.00027397,7]
[329436613,1718339541112,-151.0,0.00027397,7]
[329436614,1718339541131,-151.0,0.00027397,7]
[329436615,1718339541158,-151.0,0.00027397,7]
[329436616,1718339541169,-151.0,0.00027397,7]
[329436617,1718339541197,-151.0,0.00027397,7]
[329436618,1718339541234,-151.0,0.00027397,7]
[329436619,1718339541250,-151.0,0.00027397,7]
[329436620,1718339541280,-151.0,0.00027397,7]
[329436621,1718339541308,-151.0,0.00027397,7]
[329436622,1718339541320,-151.0,0.00027397,7]
[329436623,1718339541372,-151.0,0.00027397,7]
[329436624,1718339541402,-151.0,0.00027397,7]
[329436625,1718339541429,-151.0,0.00027397,7]
[329436626,1718339541455,-151.0,0.00027397,7]
[329436627,1718339541502,-151.0,0.00027397,7]
[329436628,1718339541517,-153.607259,0.00027397,7]
[329436629,1718339541530,-285.724008,0.00027397,7]
[329436630,1718339541556,-285.724008,0.00027397,7]
[329436631,1718339541588,-285.724008,0.00027397,7]
[329436632,1718339541610,-285.724008,0.00027397,7]
[329436633,1718339541628,-285.724008,0.00027397,7]
[329436634,1718339541653,-285.724008,0.00027397,7]
[329436635,1718339541668,-285.724008,0.00027397,7]
[329436636,1718339541686,-285.724008,0.00027397,7]
[329436637,1718339541698,-285.724008,0.00027397,7]
[329436638,1718339541709,-285.724008,0.00027397,7]
[329436639,1718339541723,-285.724008,0.00027397,7]
[329436640,1718339541734,-285.724008,0.00027397,7]
[329436641,1718339541746,-285.724008,0.00027397,7]
[329436642,1718339541757,-285.724008,0.00027397,7]
[329436643,1718339541767,-285.724008,0.00027397,7]
[329436644,1718339541779,-285.724008,0.00027397,7]
[329436645,1718339541790,-285.724008,0.00027397,7]
[329436646,1718339541803,-300.0,0.00027397,10]
[329436647,1718339541815,-300.0,0.00027397,10]
[329436648,1718339541825,-300.0,0.00027397,10]
[329436649,1718339541838,-187.0,0.000274,2]
[329436650,1718339541849,-862.0,0.000274,2]
[329436651,1718339541862,-1838.0,0.000274,2]
[329436652,1718339541876,-317.28903468,0.000274,2]
[329436653,1718339541900,-753.670465,0.000274,2]
[329436654,1718339541912,-656.56275315,0.000274,2]
[329436655,1718339541924,-413.04515,0.000274,2]
[329436656,1718339541936,-157.4,0.000274,2]
[329436657,1718339541948,-157.4,0.000274,2]
[329436658,1718339541975,-157.4,0.000274,2]
[329436659,1718339541985,-747.24,0.000275,2]
[329436660,1718339541998,-8555.3930678,0.00027503,2]
[329436661,1718339542020,-500.0,0.00027515,2]
[329436662,1718339542036,-500.0,0.00027515,2]
[329436663,1718339542071,-541.0,0.00027515,2]
[329436664,1718339542086,-150.0,0.00027534,2]
[329436665,1718339542099,-910.8,0.00027564,2]
[329436666,1718339542124,-800.0,0.00027625,2]
[329436667,1718339542145,-804.3,0.00027668,3]
[329436668,1718339542160,-384.57907488,0.00027669,3]
[329436669,1718339542172,-523.82,0.00027669,3]
[329436670,1718339542196,-500.0,0.00027669,3]
[329436671,1718339542225,-500.0,0.00027669,3]
[329436672,1718339542272,-500.0,0.00027669,3]
[329436673,1718339542291,-199.88794293,0.00027669,3]
[329436674,1718339542374,-500.0,0.00027669,3]
[329436675,1718339542393,-500.0,0.00027669,3]
[329436676,1718339542413,-500.0,0.00027669,3]
[329436677,1718339542433,-500.0,0.00027669,3]
[329436678,1718339542446,-500.0,0.00027669,3]
[329436679,1718339542469,-500.0,0.00027669,3]
[329436680,1718339542481,-1564.27,0.00027669,3]
[329436681,1718339542500,-292.99775568,0.00027669,3]
[329436682,1718339542513,-500.0,0.00027669,3]
[329436683,1718339542548,-589.39,0.00027669,3]
[329436684,1718339542572,-561.5292889,0.00027669,3]
[329436685,1718339542583,-739.0,0.00027669,3]
[329436686,1718339542604,-500.0,0.00027669,3]
[329436687,1718339542627,-500.0,0.00027669,3]
[329436688,1718339542656,-531.15,0.00027669,3]
[329436689,1718339542683,-542.84,0.00027669,3]
[329436690,1718339542699,-1349.75,0.00027669,3]
[329436691,1718339542716,-701.93,0.00027669,3]
[329436692,1718339542737,-999.06,0.00027669,3]
[329436693,1718339542748,-4942.89,0.00027669,3]
[329436694,1718339542759,-818.16,0.0002767,3]
[329436695,1718339542772,-3270.76,0.0002767,3]
[329436696,1718339542783,-661.36,0.0002767,3]
[329436697,1718339542799,-502.95,0.0002767,3]
[329436698,1718339542811,-580.28,0.0002767,3]
[329436699,1718339542833,-612.06,0.00027671,3]
[329436700,1718339542847,-500.0,0.00027671,3]
[329436701,1718339542863,-500.0,0.00027671,3]
[329436702,1718339542886,-500.0,0.00027671,3]
[329436703,1718339542907,-500.0,0.00027671,3]
[329436704,1718339542924,-500.0,0.00027671,3]
[329436705,1718339542939,-6561.12,0.00027671,3]
[329436706,1718339542969,-500.0,0.00027671,3]
[329436707,1718339542986,-531.91,0.00027671,3]
[329436708,1718339543009,-500.0,0.00027671,3]
[329436709,1718339543021,-500.0,0.00027671,3]
[329436710,1718339543033,-500.0,0.00027671,3]
[329436711,1718339543049,-500.0,0.00027671,3]
[329436712,1718339543061,-1004.96,0.00027671,3]
[329436713,1718339543075,-500.0,0.00027671,3]
[329436714,1718339543101,-500.0,0.00027671,3]
[329436715,1718339543113,-538.39,0.00027671,3]
[329436716,1718339543244,-1118.03,0.00027671,3]
[329436717,1718339543259,-714.57,0.00027671,3]
[329436718,1718339543275,-608.47,0.00027671,3]
[329436719,1718339543289,-613.06,0.00027671,3]
[329436720,1718339543307,-1072.6,0.00027671,3]
[329436721,1718339543320,-956.0,0.00027671,3]
[329436722,1718339543337,-2671.76,0.00027671,3]
[329436723,1718339543361,-1819.66,0.00027671,3]
[329436724,1718339543384,-933.79,0.00027671,3]
[329436725,1718339543404,-621.84,0.00027671,3]
[329436726,1718339543416,-555.33,0.00027671,3]
[329436727,1718339543435,-675.64,0.00027671,3]
[329436728,1718339543460,-1522.73,0.00027671,3]
[329436729,1718339543500,-685.9,0.00027671,3]
[329436730,1718339543569,-1128.28,0.00027671,3]
[329436731,1718339543592,-568.14,0.00027671,3]
[329436732,1718339543648,-955.6,0.00027671,3]
[329436733,1718339543685,-550.81,0.00027671,3]
[329436734,1718339543713,-500.0,0.00027671,3]
[329436735,1718339543754,-1291.78,0.00027671,3]
[329436736,1718339543769,-658.71,0.00027671,3]
[329436737,1718339543789,-856.95,0.00027671,3]
[329436738,1718339543813,-645.64488616,0.00027671,3]
[329436739,1718339543837,-616.06496585,0.00027671,3]
[329436740,1718339543852,-500.0,0.00027671,3]
[329436741,1718339543864,-1024.96,0.00027671,3]
[329436742,1718339543877,-2152.37,0.00027671,3]
[329436743,1718339543892,-599.85,0.00027671,3]
[329436744,1718339543904,-500.0,0.00027671,3]
[329436745,1718339543916,-956.85,0.00027671,3]
[329436746,1718339543935,-1170.45,0.00027671,3]
[329436747,1718339543953,-1214.59,0.00027671,3]
[329436748,1718339543972,-500.0,0.00027671,3]
[329436749,1718339543988,-500.0,0.00027671,3]
[329436750,1718339544011,-500.0,0.00027671,3]
[329436751,1718339544027,-500.0,0.00027671,3]
[329436752,1718339544041,-2473.73,0.00027671,3]
[329436753,1718339544052,-500.0,0.00027671,3]
[329436754,1718339544079,-805.87,0.00027671,3]
[329436755,1718339544091,-1116.43,0.00027671,3]
[329436756,1718339544104,-1036.04,0.00027671,3]
[329436757,1718339544124,-1345.04,0.00027671,3]
[329436758,1718339544136,-1427.39,0.00027671,3]
[329436759,1718339544152,-500.0,0.00027671,3]
[329436760,1718339544163,-500.0,0.00027671,3]
[329436761,1718339544202,-500.0,0.00027671,3]
[329436762,1718339544225,-697.86,0.00027671,3]
[329436763,1718339544239,-500.0,0.00027671,3]
[329436764,1718339544253,-679.77,0.00027671,3]
[329436765,1718339544277,-500.0,0.00027671,3]
[329436766,1718339544301,-590.04,0.00027671,3]
[329436767,1718339544326,-500.0,0.00027671,3]
[329436768,1718339544359,-622.11,0.00027671,3]
[329436769,1718339544371,-1058.89,0.00027671,3]
[329436770,1718339544391,-2428.66,0.00027671,3]
[329436771,1718339544403,-592.39,0.00027671,3]
[329436772,1718339544420,-2903.07,0.00027671,3]
[329436773,1718339544444,-1440.79,0.00027671,3]
[329436774,1718339544468,-592.07,0.00027671,3]
[329436775,1718339544483,-1382.49,0.00027671,3]
[329436776,1718339544524,-3488.55,0.00027671,3]
[329436777,1718339544561,-685.96,0.00027671,3]
[329436778,1718339544591,-1913.72,0.00027671,3]
[329436779,1718339544606,-7564.41,0.00027671,3]
[329436780,1718339544624,-1286.09,0.00027671,3]
[329436781,1718339544641,-586.2,0.00027671,3]
[329436782,1718339544661,-812.79,0.00027671,3]
[329436783,1718339544673,-649.04915129,0.00027671,3]
[329436784,1718339544688,-895.63,0.00027671,3]
[329436785,1718339544710,-1228.35,0.00027671,3]
[329436786,1718339544738,-3118.28,0.00027671,3]
[329436787,1718339544754,-793.01,0.00027671,3]
[329436788,1718339544767,-500.0,0.00027671,3]
[329436789,1718339544807,-584.92952546,0.00027671,3]
[329436790,1718339544821,-500.0,0.00027671,3]
[329436791,1718339544852,-1794.39,0.00027671,3]
[329436792,1718339544878,-776.8,0.000277,2]
[329436793,1718339544891,-300.0,0.00027719,10]
[329436794,1718339544909,-303.67444109,0.00027719,10]
[329436795,1718339544933,-300.0,0.00027719,10]
[329436796,1718339544956,-29419.559,0.0002772,4]
[329436797,1718339544974,-29419.559,0.0002772,4]
[329436798,1718339544992,-29419.56,0.0002772,4]
[329436799,1718339545010,-29419.56,0.0002772,4]
[329436800,1718339545025,-29419.559,0.0002772,4]
[329436801,1718339545046,-204.0,0.0002777,2]
[329436802,1718339545059,-152.0,0.00027779,8]
[329436803,1718339545081,-1205.15866329,0.000278,2]
[329436804,1718339545112,-359.0,0.00027801,2]
[329436805,1718339545137,-290.0,0.00027801,2]
[329436806,1718339545164,-1822.0,0.00027801,2]
[329436807,1718339545211,-505.19,0.00027801,2]
[329436808,1718339545272,-1652.0,0.00027801,2]
[329436809,1718339545304,-3065.123,0.00027801,2]
[329436810,1718339545328,-442.0,0.00027801,2]
[329436811,1718339545382,-335.928,0.00027801,2]
[329436812,1718339545409,-498.756,0.00027801,2]
[329436813,1718339545433,-38063.0,0.00027801,2]
[329436814,1718339545449,-1304.0,0.00027801,2]
[329436815,1718339545470,-1095.01,0.00027801,2]
[329436816,1718339545489,-447.0,0.00027801,2]
[329436817,1718339545509,-1704.132,0.00027801,2]
[329436818,1718339545534,-1195.0,0.00027801,2]
[329436819,1718339545564,-3178.0,0.00027801,2]
[329436820,1718339545590,-154.39352931,0.00027809,2]
[329436821,1718339545607,-259.31516905,0.00027818,2]
[329436822,1718339545632,-259.31516905,0.00027832,2]
[329436823,1718339545665,-166.66666668,0.00027911,2]
[329436824,1718339545686,-804.3,0.00027942,3]
[329436825,1718339545703,-523.82,0.00027943,3]
[329436826,1718339545741,-500.0,0.00027943,3]
[329436827,1718339545761,-500.0,0.00027943,3]
[329436828,1718339545781,-500.0,0.00027943,3]
[329436829,1718339545800,-222.33878607,0.00027943,3]
[329436830,1718339545828,-500.0,0.00027943,3]
[329436831,1718339545847,-500.0,0.00027943,3]
[329436832,1718339545864,-214.3821607,0.00027943,3]
[329436833,1718339545891,-500.0,0.00027943,3]
[329436834,1718339545910,-500.0,0.00027943,3]
[329436835,1718339545926,-1564.27,0.00027943,3]
[329436836,1718339545943,-544.45313285,0.00027943,3]
[329436837,1718339545965,-589.39,0.00027943,3]
[329436838,1718339546012,-739.0,0.00027943,3]
[329436839,1718339546029,-500.0,0.00027943,3]
[329436840,1718339546049,-500.0,0.00027943,3]
[329436841,1718339546066,-531.15,0.00027943,3]